[Event "*** Titled Tuesday Blitz"]
[Site "Chess.com"]
[Date "2020.10.20"]
[Round "10"]
[White "QuintilianoR"]
[Black "TST2014"]
[Result "1-0"]
[WhiteElo "2659"]
[BlackElo "2505"]
[TimeControl "180+1"]
[EndTime "11:57:06 PDT"]
[Termination "QuintilianoR won by checkmate"]

1. Nf3 {[%clk 0:03:00.9]} 1... Nf6 {[%clk 0:02:57.7]} 2. d4 {[%clk 0:03:00.2]}
2... g6 {[%clk 0:02:53.8]} 3. c4 {[%clk 0:03:00.4]} 3... Bg7 {[%clk 0:02:53.5]}
4. Nc3 {[%clk 0:03:00.8]} 4... O-O {[%clk 0:02:53]} 5. e4 {[%clk 0:03:00.1]}
5... d6 {[%clk 0:02:53.4]} 6. Be2 {[%clk 0:03:00.1]} 6... e5 {[%clk 0:02:52.8]}
7. O-O {[%clk 0:03:00.6]} 7... Nc6 {[%clk 0:02:52.8]} 8. d5 {[%clk 0:03:01]}
8... Ne7 {[%clk 0:02:53]} 9. b4 {[%clk 0:03:01.5]} 9... Nh5 {[%clk 0:02:52.3]}
10. g3 {[%clk 0:03:00.6]} 10... f5 {[%clk 0:02:39]} 11. Ng5 {[%clk 0:02:59.5]}
11... Nf6 {[%clk 0:02:38.8]} 12. f3 {[%clk 0:02:59.9]} 12... f4 {[%clk
0:02:37.1]} 13. b5 {[%clk 0:02:59.7]} 13... Nh5 {[%clk 0:02:23.5]} 14. g4 {[%clk
0:02:16.9]} 14... Nf6 {[%clk 0:01:59.4]} 15. Ne6 {[%clk 0:02:12.9]} 15... Bxe6
{[%clk 0:01:58.1]} 16. dxe6 {[%clk 0:02:13.8]} 16... c6 {[%clk 0:01:52.3]} 17.
bxc6 {[%clk 0:02:12.8]} 17... bxc6 {[%clk 0:01:52]} 18. Rb1 {[%clk 0:02:13.3]}
18... Rb8 {[%clk 0:01:48.2]} 19. Ba3 {[%clk 0:02:08.1]} 19... Ne8 {[%clk
0:01:46.4]} 20. Qa4 {[%clk 0:01:53.7]} 20... Rxb1 {[%clk 0:01:27.6]} 21. Rxb1
{[%clk 0:01:51.6]} 21... Nc7 {[%clk 0:01:28.1]} 22. Rd1 {[%clk 0:01:38.9]} 22...
Nxe6 {[%clk 0:01:25.4]} 23. Rxd6 {[%clk 0:01:36.3]} 23... Qb6+ {[%clk
0:01:24.8]} 24. c5 {[%clk 0:01:25.6]} 24... Nxc5 {[%clk 0:01:23.3]} 25. Qc4+
{[%clk 0:01:25.1]} 25... Ne6+ {[%clk 0:01:23.1]} 26. Kf1 {[%clk 0:01:17]} 26...
Kh8 {[%clk 0:01:16.6]} 27. Rxe6 {[%clk 0:01:12.4]} 27... Rd8 {[%clk 0:00:25]}
28. Rxe7 {[%clk 0:01:09.8]} 28... Bf8 {[%clk 0:00:24.1]} 29. Qf7 {[%clk
0:01:02.2]} 29... Bxe7 {[%clk 0:00:21.1]} 30. Bxe7 {[%clk 0:01:03.1]} 30... Rf8
{[%clk 0:00:09.9]} 31. Bf6# {[%clk 0:01:00.5]} 1-0

[Event "*** Titled Tuesday Blitz"]
[Site "Chess.com"]
[Date "2020.10.20"]
[Round "10"]
[White "Sashadav97"]
[Black "LittlePeasant"]
[Result "0-1"]
[WhiteElo "2671"]
[BlackElo "2819"]
[TimeControl "180+1"]
[EndTime "11:57:09 PDT"]
[Termination "LittlePeasant won by resignation"]

1. Nf3 {[%clk 0:03:00.9]} 1... d5 {[%clk 0:02:59.9]} 2. c4 {[%clk 0:03:00.6]}
2... c6 {[%clk 0:03:00]} 3. g3 {[%clk 0:03:00.3]} 3... Bg4 {[%clk 0:02:59.5]} 4.
Bg2 {[%clk 0:02:59]} 4... e6 {[%clk 0:02:58.9]} 5. Qb3 {[%clk 0:02:42.3]} 5...
Qb6 {[%clk 0:02:57.7]} 6. d3 {[%clk 0:02:40.5]} 6... Nd7 {[%clk 0:02:56]} 7. Be3
{[%clk 0:02:36.4]} 7... Bc5 {[%clk 0:02:55.4]} 8. Bxc5 {[%clk 0:02:35.7]} 8...
Nxc5 {[%clk 0:02:54.3]} 9. Qc3 {[%clk 0:02:21.3]} 9... Nf6 {[%clk 0:02:52.3]}
10. b3 {[%clk 0:02:21.5]} 10... O-O {[%clk 0:02:46.3]} 11. O-O {[%clk
0:02:20.9]} 11... Rad8 {[%clk 0:02:45.6]} 12. Nbd2 {[%clk 0:02:20.9]} 12... Rfe8
{[%clk 0:02:37.1]} 13. b4 {[%clk 0:02:02.7]} 13... Ncd7 {[%clk 0:02:26.2]} 14.
e4 {[%clk 0:01:10.1]} 14... Bxf3 {[%clk 0:01:47.7]} 15. Bxf3 {[%clk 0:01:02.3]}
15... dxe4 {[%clk 0:01:47.9]} 16. Nxe4 {[%clk 0:00:26.8]} 16... Nxe4 {[%clk
0:01:47.4]} 17. dxe4 {[%clk 0:00:26.9]} 17... c5 {[%clk 0:01:39.3]} 18. b5
{[%clk 0:00:26.5]} 18... f6 {[%clk 0:01:32.4]} 19. Rfd1 {[%clk 0:00:21.7]} 19...
Ne5 {[%clk 0:01:32.5]} 20. Be2 {[%clk 0:00:22]} 20... Rd4 {[%clk 0:01:31.6]} 21.
f4 {[%clk 0:00:16]} 21... Nf7 {[%clk 0:01:31.9]} 22. Rxd4 {[%clk 0:00:16.2]}
22... cxd4 {[%clk 0:01:32.8]} 23. Qd3 {[%clk 0:00:17.1]} 23... Qc5 {[%clk
0:01:29.7]} 24. a4 {[%clk 0:00:17.6]} 24... e5 {[%clk 0:01:27.9]} 25. f5 {[%clk
0:00:17.2]} 25... Nd6 {[%clk 0:01:26.2]} 26. Kg2 {[%clk 0:00:15.8]} 26... Qc7
{[%clk 0:01:24]} 27. Rc1 {[%clk 0:00:13.2]} 27... b6 {[%clk 0:01:24.2]} 28. Qf3
{[%clk 0:00:12.5]} 28... Nb7 {[%clk 0:01:23.6]} 29. c5 {[%clk 0:00:12.7]} 29...
Nxc5 {[%clk 0:01:23.9]} 30. Bc4+ {[%clk 0:00:13.6]} 30... Kh8 {[%clk 0:01:21.5]}
31. Bd5 {[%clk 0:00:14.2]} 31... Rc8 {[%clk 0:01:10.5]} 32. Qh5 {[%clk
0:00:13.6]} 32... Qd8 {[%clk 0:01:06.3]} 33. g4 {[%clk 0:00:12]} 33... Nd3
{[%clk 0:01:04.6]} 34. Rc6 {[%clk 0:00:06.4]} 34... Nf4+ {[%clk 0:01:04.4]} 0-1

[Event "*** Titled Tuesday Blitz"]
[Site "Chess.com"]
[Date "2020.10.20"]
[Round "10"]
[White "Jospem"]
[Black "GMKrikor"]
[Result "1-0"]
[WhiteElo "2968"]
[BlackElo "2808"]
[TimeControl "180+1"]
[EndTime "11:57:14 PDT"]
[Termination "Jospem won by resignation"]

1. e4 {[%clk 0:03:00.9]} 1... c5 {[%clk 0:02:59.7]} 2. Nf3 {[%clk 0:03:01.3]}
2... d6 {[%clk 0:02:59.4]} 3. c3 {[%clk 0:03:01.8]} 3... Nf6 {[%clk 0:02:59.3]}
4. h3 {[%clk 0:03:02.1]} 4... g6 {[%clk 0:02:52.3]} 5. Bd3 {[%clk 0:03:02.4]}
5... Bg7 {[%clk 0:02:52.2]} 6. Bc2 {[%clk 0:03:03.1]} 6... O-O {[%clk
0:02:52.8]} 7. O-O {[%clk 0:03:03.8]} 7... e5 {[%clk 0:02:53.4]} 8. d4 {[%clk
0:03:04.2]} 8... cxd4 {[%clk 0:02:49.2]} 9. cxd4 {[%clk 0:03:05.1]} 9... Nc6
{[%clk 0:02:49.9]} 10. d5 {[%clk 0:03:04.9]} 10... Nb4 {[%clk 0:02:49.3]} 11.
Nc3 {[%clk 0:03:05.2]} 11... Nxc2 {[%clk 0:02:49.1]} 12. Qxc2 {[%clk 0:03:06.1]}
12... Bd7 {[%clk 0:02:40]} 13. Qb3 {[%clk 0:03:00.3]} 13... b5 {[%clk
0:02:33.8]} 14. Be3 {[%clk 0:02:42.5]} 14... Qa5 {[%clk 0:02:12.9]} 15. a3
{[%clk 0:02:28]} 15... Rfc8 {[%clk 0:02:09.6]} 16. Rfc1 {[%clk 0:02:23.4]} 16...
Rab8 {[%clk 0:02:05.1]} 17. Qb4 {[%clk 0:02:19.1]} 17... Qxb4 {[%clk 0:01:56.1]}
18. axb4 {[%clk 0:02:20]} 18... Rc4 {[%clk 0:01:52.9]} 19. Nd2 {[%clk
0:02:02.3]} 19... Rxb4 {[%clk 0:01:52.9]} 20. b3 {[%clk 0:02:02.5]} 20... a5
{[%clk 0:01:33.6]} 21. Rxa5 {[%clk 0:01:40.5]} 21... Rc8 {[%clk 0:01:33.5]} 22.
Raa1 {[%clk 0:01:30.3]} 22... h6 {[%clk 0:01:25.6]} 23. Na2 {[%clk 0:01:17.8]}
23... Rxc1+ {[%clk 0:01:25.2]} 24. Rxc1 {[%clk 0:01:17.4]} 24... Rxe4 {[%clk
0:01:25.7]} 25. Nxe4 {[%clk 0:01:16.2]} 25... Nxe4 {[%clk 0:01:26.6]} 26. Rc7
{[%clk 0:01:14.6]} 26... Be8 {[%clk 0:01:21.3]} 27. Nb4 {[%clk 0:01:10.8]} 27...
f5 {[%clk 0:01:16.5]} 28. f3 {[%clk 0:01:04]} 28... Nf6 {[%clk 0:01:14.3]} 29.
Rb7 {[%clk 0:00:57.6]} 29... g5 {[%clk 0:01:06.6]} 30. Ba7 {[%clk 0:00:57.7]}
30... e4 {[%clk 0:01:00.6]} 31. Bd4 {[%clk 0:00:50.7]} 31... exf3 {[%clk
0:00:45.7]} 32. gxf3 {[%clk 0:00:50.7]} 32... Nxd5 {[%clk 0:00:20.1]} 33. Rxg7+
{[%clk 0:00:49.7]} 1-0

[Event "*** Titled Tuesday Blitz"]
[Site "Chess.com"]
[Date "2020.10.20"]
[Round "10"]
[White "fabianvivasz"]
[Black "dominikaf"]
[Result "1-0"]
[WhiteElo "2418"]
[BlackElo "2195"]
[TimeControl "180+1"]
[EndTime "11:57:22 PDT"]
[Termination "fabianvivasz won by checkmate"]

1. e4 {[%clk 0:02:58.9]} 1... e5 {[%clk 0:03:00]} 2. Nf3 {[%clk 0:02:57.6]} 2...
d6 {[%clk 0:03:00.3]} 3. d4 {[%clk 0:02:56.4]} 3... exd4 {[%clk 0:03:00.4]} 4.
Nxd4 {[%clk 0:02:55.4]} 4... Nc6 {[%clk 0:03:01.3]} 5. Nc3 {[%clk 0:02:52.7]}
5... g6 {[%clk 0:03:01.5]} 6. Be3 {[%clk 0:02:45.9]} 6... Bg7 {[%clk 0:03:01.5]}
7. Qd2 {[%clk 0:02:45.8]} 7... Nge7 {[%clk 0:02:59.5]} 8. f3 {[%clk 0:02:39.5]}
8... O-O {[%clk 0:02:58.4]} 9. O-O-O {[%clk 0:02:37.3]} 9... a6 {[%clk
0:02:54.4]} 10. h4 {[%clk 0:02:30.9]} 10... f5 {[%clk 0:02:33.3]} 11. Bc4+
{[%clk 0:02:25.4]} 11... Kh8 {[%clk 0:02:27.1]} 12. h5 {[%clk 0:02:25.3]} 12...
Na5 {[%clk 0:02:15.7]} 13. Be6 {[%clk 0:02:04.1]} 13... Rf6 {[%clk 0:01:41.6]}
14. h6 {[%clk 0:01:31.4]} 14... Bxe6 {[%clk 0:01:22.5]} 15. hxg7+ {[%clk
0:01:30.5]} 15... Kxg7 {[%clk 0:01:23]} 16. Bg5 {[%clk 0:01:20.7]} 16... Bg8
{[%clk 0:01:01.1]} 17. Bxf6+ {[%clk 0:01:15]} 17... Kxf6 {[%clk 0:01:02]} 18.
exf5 {[%clk 0:01:10.1]} 18... gxf5 {[%clk 0:00:58.4]} 19. g4 {[%clk 0:00:54.3]}
19... Qd7 {[%clk 0:00:40.6]} 20. Qh6+ {[%clk 0:00:47.6]} 20... Kf7 {[%clk
0:00:37]} 21. Rde1 {[%clk 0:00:43.6]} 21... Re8 {[%clk 0:00:23.7]} 22. Ne6
{[%clk 0:00:33.6]} 22... Ng6 {[%clk 0:00:02.2]} 23. Qg7# {[%clk 0:00:33.4]} 1-0

[Event "*** Titled Tuesday Blitz"]
[Site "Chess.com"]
[Date "2020.10.20"]
[Round "10"]
[White "Piotrek1979"]
[Black "grunbergmihai"]
[Result "0-1"]
[WhiteElo "2409"]
[BlackElo "2509"]
[TimeControl "180+1"]
[EndTime "11:57:24 PDT"]
[Termination "grunbergmihai won by checkmate"]

1. Nf3 {[%clk 0:03:00.9]} 1... c5 {[%clk 0:02:58.5]} 2. g3 {[%clk 0:03:00.8]}
2... d5 {[%clk 0:02:58.3]} 3. Bg2 {[%clk 0:03:01.7]} 3... Nc6 {[%clk 0:02:57.8]}
4. O-O {[%clk 0:03:00.6]} 4... Nf6 {[%clk 0:02:57.9]} 5. d3 {[%clk 0:03:00.3]}
5... g6 {[%clk 0:02:56.7]} 6. Nbd2 {[%clk 0:02:56.7]} 6... Bg7 {[%clk
0:02:56.8]} 7. e4 {[%clk 0:02:56.9]} 7... O-O {[%clk 0:02:57.7]} 8. Re1 {[%clk
0:02:53.9]} 8... e6 {[%clk 0:02:50.3]} 9. c3 {[%clk 0:02:51.2]} 9... dxe4 {[%clk
0:02:46.3]} 10. dxe4 {[%clk 0:02:50.1]} 10... b6 {[%clk 0:02:46]} 11. e5 {[%clk
0:02:47.3]} 11... Nd5 {[%clk 0:02:44.6]} 12. Nc4 {[%clk 0:02:27.6]} 12... Qc7
{[%clk 0:02:36.6]} 13. a4 {[%clk 0:02:17.2]} 13... Ba6 {[%clk 0:02:34.7]} 14.
Qb3 {[%clk 0:02:09.5]} 14... Rad8 {[%clk 0:02:26]} 15. Bg5 {[%clk 0:02:08.3]}
15... Rd7 {[%clk 0:02:23.3]} 16. Rad1 {[%clk 0:01:55.2]} 16... Bxc4 {[%clk
0:02:06]} 17. Qxc4 {[%clk 0:01:54.5]} 17... Bxe5 {[%clk 0:02:02.7]} 18. Nxe5
{[%clk 0:01:48.9]} 18... Nxe5 {[%clk 0:02:02]} 19. Qh4 {[%clk 0:01:29.6]} 19...
h5 {[%clk 0:01:08.4]} 20. c4 {[%clk 0:01:04]} 20... Nb4 {[%clk 0:01:03.7]} 21.
Bf4 {[%clk 0:00:59.1]} 21... Rxd1 {[%clk 0:00:54.8]} 22. Rxd1 {[%clk 0:01:00]}
22... f6 {[%clk 0:00:50.4]} 23. Bh3 {[%clk 0:00:26.2]} 23... Kf7 {[%clk
0:00:44.2]} 24. g4 {[%clk 0:00:23]} 24... Nf3+ {[%clk 0:00:42.4]} 25. Kg2 {[%clk
0:00:19.3]} 25... Nxh4+ {[%clk 0:00:41.5]} 26. Kg3 {[%clk 0:00:18.3]} 26... Qc6
{[%clk 0:00:36.8]} 27. Kxh4 {[%clk 0:00:14.7]} 27... g5+ {[%clk 0:00:35.8]} 28.
Kg3 {[%clk 0:00:11.2]} 28... h4# {[%clk 0:00:35.6]} 0-1

[Event "*** Titled Tuesday Blitz"]
[Site "Chess.com"]
[Date "2020.10.20"]
[Round "10"]
[White "Legendinunknown"]
[Black "Durarbayli"]
[Result "0-1"]
[WhiteElo "2606"]
[BlackElo "2771"]
[TimeControl "180+1"]
[EndTime "11:57:25 PDT"]
[Termination "Durarbayli won by resignation"]

1. e4 {[%clk 0:03:00.9]} 1... c5 {[%clk 0:02:59.2]} 2. Nf3 {[%clk 0:03:00.4]}
2... d6 {[%clk 0:03:00.1]} 3. d4 {[%clk 0:02:59.9]} 3... cxd4 {[%clk 0:03:01]}
4. Nxd4 {[%clk 0:03:00.8]} 4... Nf6 {[%clk 0:03:01.6]} 5. Nc3 {[%clk 0:03:01.1]}
5... Nc6 {[%clk 0:03:02.2]} 6. Bg5 {[%clk 0:02:59.5]} 6... Qb6 {[%clk
0:03:02.4]} 7. Nb3 {[%clk 0:02:53]} 7... e6 {[%clk 0:03:02.9]} 8. Be2 {[%clk
0:02:52.4]} 8... a6 {[%clk 0:02:59.3]} 9. O-O {[%clk 0:02:52.1]} 9... Be7 {[%clk
0:02:58]} 10. Be3 {[%clk 0:02:52.1]} 10... Qc7 {[%clk 0:02:57.3]} 11. f4 {[%clk
0:02:52.4]} 11... b5 {[%clk 0:02:55.2]} 12. Bf3 {[%clk 0:02:52.5]} 12... Bb7
{[%clk 0:02:54.8]} 13. Kh1 {[%clk 0:02:52.9]} 13... O-O {[%clk 0:02:45.3]} 14.
Qe2 {[%clk 0:02:52.5]} 14... Rac8 {[%clk 0:02:41.8]} 15. g4 {[%clk 0:02:51.4]}
15... Nd7 {[%clk 0:02:28.2]} 16. Qg2 {[%clk 0:02:49.9]} 16... Na5 {[%clk
0:02:26.3]} 17. Nxa5 {[%clk 0:02:45.1]} 17... Qxa5 {[%clk 0:02:27.2]} 18. a3
{[%clk 0:02:44.6]} 18... Rxc3 {[%clk 0:02:17.2]} 19. Bd2 {[%clk 0:02:43.6]}
19... Rxc2 {[%clk 0:02:16.8]} 20. Bxa5 {[%clk 0:02:43.6]} 20... Rxg2 {[%clk
0:02:17.7]} 21. Kxg2 {[%clk 0:02:44]} 21... Nc5 {[%clk 0:02:18.1]} 22. Rac1
{[%clk 0:02:35.3]} 22... Bxe4 {[%clk 0:02:03]} 23. Bxe4 {[%clk 0:02:32.4]} 23...
Nxe4 {[%clk 0:02:03.9]} 24. Rc6 {[%clk 0:02:32.5]} 24... d5 {[%clk 0:01:53.1]}
25. Rxa6 {[%clk 0:02:31.6]} 25... Rc8 {[%clk 0:01:49.6]} 26. Bb4 {[%clk
0:02:22.7]} 26... Bxb4 {[%clk 0:01:45.1]} 27. axb4 {[%clk 0:02:23.6]} 27... h5
{[%clk 0:01:45.5]} 28. Rb6 {[%clk 0:02:17.8]} 28... hxg4 {[%clk 0:01:42.9]} 29.
Rxb5 {[%clk 0:02:17.9]} 29... Rc2+ {[%clk 0:01:43.1]} 30. Kg1 {[%clk 0:02:18.2]}
30... Rxb2 {[%clk 0:01:42.5]} 31. Rb7 {[%clk 0:02:17.4]} 31... d4 {[%clk
0:01:31.7]} 32. b5 {[%clk 0:02:16.1]} 32... d3 {[%clk 0:01:29.3]} 33. b6 {[%clk
0:02:16.1]} 33... Nd2 {[%clk 0:01:20.1]} 34. Rf2 {[%clk 0:01:40.8]} 34... Nf3+
{[%clk 0:01:16.9]} 35. Kg2 {[%clk 0:01:41.2]} 35... d2 {[%clk 0:01:17]} 36. Rd7
{[%clk 0:01:39.8]} 36... Rxb6 {[%clk 0:01:16]} 37. Rfxd2 {[%clk 0:01:36.7]}
37... Nxd2 {[%clk 0:01:16.9]} 38. Rxd2 {[%clk 0:01:37]} 38... Rb3 {[%clk
0:01:17.1]} 39. Rc2 {[%clk 0:01:30.3]} 39... Rf3 {[%clk 0:01:13.5]} 40. Rc4
{[%clk 0:01:27.4]} 40... Kh7 {[%clk 0:01:11.6]} 41. Ra4 {[%clk 0:01:26]} 41...
Kg6 {[%clk 0:01:06.7]} 42. Rb4 {[%clk 0:01:26.1]} 42... Kf5 {[%clk 0:01:06]} 43.
Rb7 {[%clk 0:01:26.2]} 43... f6 {[%clk 0:00:57.2]} 44. Rxg7 {[%clk 0:01:24]}
44... Rxf4 {[%clk 0:00:56.8]} 45. Ra7 {[%clk 0:01:23.7]} 45... Rb4 {[%clk
0:00:55.8]} 46. Ra2 {[%clk 0:01:21.4]} 46... e5 {[%clk 0:00:55.7]} 47. Rf2+
{[%clk 0:01:21.8]} 47... Kg5 {[%clk 0:00:55.2]} 48. h3 {[%clk 0:01:21.5]} 48...
gxh3+ {[%clk 0:00:54.6]} 49. Kxh3 {[%clk 0:01:22.4]} 49... f5 {[%clk 0:00:54.7]}
50. Kg3 {[%clk 0:01:22.4]} 50... e4 {[%clk 0:00:54.4]} 51. Ra2 {[%clk
0:01:21.1]} 51... Rb3+ {[%clk 0:00:51.7]} 52. Kf2 {[%clk 0:01:21.1]} 52... f4
{[%clk 0:00:48.5]} 53. Ra8 {[%clk 0:01:20.4]} 53... Rb2+ {[%clk 0:00:47.5]} 54.
Ke1 {[%clk 0:01:19.4]} 54... Kg4 {[%clk 0:00:47.6]} 55. Ra3 {[%clk 0:01:12.5]}
55... e3 {[%clk 0:00:46.9]} 0-1

[Event "*** Titled Tuesday Blitz"]
[Site "Chess.com"]
[Date "2020.10.20"]
[Round "10"]
[White "Caterpiller35"]
[Black "Fusikk"]
[Result "0-1"]
[WhiteElo "2417"]
[BlackElo "2530"]
[TimeControl "180+1"]
[EndTime "11:57:29 PDT"]
[Termination "Fusikk won by resignation"]

1. d4 {[%clk 0:03:00.9]} 1... Nf6 {[%clk 0:02:58.7]} 2. Bg5 {[%clk 0:03:00.5]}
2... Ne4 {[%clk 0:02:58.5]} 3. Bf4 {[%clk 0:03:00.5]} 3... d5 {[%clk 0:02:58.8]}
4. e3 {[%clk 0:03:00.5]} 4... Bf5 {[%clk 0:02:52]} 5. Bd3 {[%clk 0:03:00.2]}
5... e6 {[%clk 0:02:51.4]} 6. g4 {[%clk 0:02:57.6]} 6... Bg6 {[%clk 0:02:49.7]}
7. h4 {[%clk 0:02:57.6]} 7... h5 {[%clk 0:02:43.8]} 8. f3 {[%clk 0:02:57.1]}
8... Nf6 {[%clk 0:02:41.7]} 9. Bxg6 {[%clk 0:02:56.8]} 9... fxg6 {[%clk
0:02:42.6]} 10. Qd3 {[%clk 0:02:56.6]} 10... Kf7 {[%clk 0:02:42.2]} 11. Nh3
{[%clk 0:02:54.3]} 11... Nh7 {[%clk 0:02:36.3]} 12. Bg3 {[%clk 0:02:33.9]} 12...
Be7 {[%clk 0:02:34]} 13. g5 {[%clk 0:02:32.6]} 13... Re8 {[%clk 0:02:15.1]} 14.
Nc3 {[%clk 0:02:23.1]} 14... Nf8 {[%clk 0:02:09.1]} 15. O-O-O {[%clk 0:02:22.2]}
15... Bd6 {[%clk 0:02:03.6]} 16. Ne2 {[%clk 0:02:06]} 16... Nc6 {[%clk
0:02:02.9]} 17. c3 {[%clk 0:02:04.4]} 17... Ne7 {[%clk 0:02:02.6]} 18. e4 {[%clk
0:02:03.3]} 18... Bxg3 {[%clk 0:01:58.4]} 19. Nxg3 {[%clk 0:02:02.3]} 19... Qd6
{[%clk 0:01:59.3]} 20. Rhg1 {[%clk 0:01:54.4]} 20... Rec8 {[%clk 0:01:57.9]} 21.
Rdf1 {[%clk 0:01:52]} 21... c5 {[%clk 0:01:54.2]} 22. f4 {[%clk 0:01:48.3]}
22... cxd4 {[%clk 0:01:38]} 23. Qxd4 {[%clk 0:01:38.2]} 23... Rc4 {[%clk
0:01:34.4]} 24. Qd3 {[%clk 0:01:38]} 24... Qc6 {[%clk 0:01:01.6]} 25. f5 {[%clk
0:01:32.9]} 25... dxe4 {[%clk 0:01:01.7]} 26. fxg6+ {[%clk 0:01:19.2]} 26... Kg8
{[%clk 0:00:50.2]} 27. Qd1 {[%clk 0:01:12.9]} 27... Rc8 {[%clk 0:00:46.6]} 28.
Qxh5 {[%clk 0:01:05.9]} 28... Rxc3+ {[%clk 0:00:29.4]} 29. Kb1 {[%clk
0:01:05.6]} 29... Rxg3 {[%clk 0:00:16.4]} 30. Rxf8+ {[%clk 0:01:00.1]} 30...
Kxf8 {[%clk 0:00:17.3]} 31. Qh8+ {[%clk 0:00:50.9]} 31... Ng8 {[%clk 0:00:16.9]}
32. Rf1+ {[%clk 0:00:51.1]} 32... Rf3 {[%clk 0:00:17]} 0-1

[Event "*** Titled Tuesday Blitz"]
[Site "Chess.com"]
[Date "2020.10.20"]
[Round "10"]
[White "AttackSparrow"]
[Black "GMJustin"]
[Result "1-0"]
[WhiteElo "2394"]
[BlackElo "2275"]
[TimeControl "180+1"]
[EndTime "11:57:30 PDT"]
[Termination "AttackSparrow won on time"]

1. e4 {[%clk 0:03:00.9]} 1... e5 {[%clk 0:02:54.7]} 2. Nc3 {[%clk 0:02:59.7]}
2... Nf6 {[%clk 0:02:49.3]} 3. f4 {[%clk 0:02:59]} 3... d5 {[%clk 0:02:46.8]} 4.
fxe5 {[%clk 0:02:58.8]} 4... Nxe4 {[%clk 0:02:46.2]} 5. Qe2 {[%clk 0:02:59.2]}
5... Qh4+ {[%clk 0:02:07.9]} 6. g3 {[%clk 0:02:58.3]} 6... Nxg3 {[%clk
0:02:07.8]} 7. Qf2 {[%clk 0:02:58.6]} 7... d4 {[%clk 0:00:40.9]} 8. Nf3 {[%clk
0:02:12.5]} 8... Qh5 {[%clk 0:00:26.3]} 9. Qxg3 {[%clk 0:01:46.5]} 9... dxc3
{[%clk 0:00:24.5]} 10. bxc3 {[%clk 0:01:47.4]} 10... Qg4 {[%clk 0:00:22.5]} 11.
d4 {[%clk 0:01:45.1]} 11... Qxg3+ {[%clk 0:00:21.5]} 12. hxg3 {[%clk 0:01:46]}
12... Bf5 {[%clk 0:00:21]} 13. Bd3 {[%clk 0:01:45.4]} 13... Bxd3 {[%clk
0:00:20.2]} 14. cxd3 {[%clk 0:01:46.3]} 14... Nd7 {[%clk 0:00:19.8]} 15. Rb1
{[%clk 0:01:44.5]} 15... Nb6 {[%clk 0:00:18.4]} 16. Kf2 {[%clk 0:01:43.9]} 16...
Be7 {[%clk 0:00:18]} 17. c4 {[%clk 0:01:42.4]} 17... O-O-O {[%clk 0:00:17.4]}
18. Be3 {[%clk 0:01:32.8]} 18... f6 {[%clk 0:00:16.2]} 19. e6 {[%clk 0:01:27.6]}
19... c6 {[%clk 0:00:15.7]} 20. a4 {[%clk 0:01:23]} 20... h6 {[%clk 0:00:15]}
21. a5 {[%clk 0:01:22.8]} 21... Na8 {[%clk 0:00:14.5]} 22. Nh4 {[%clk
0:01:18.7]} 22... Nc7 {[%clk 0:00:13.6]} 23. Nf5 {[%clk 0:01:12.9]} 23... Rhe8
{[%clk 0:00:13.6]} 24. Nxg7 {[%clk 0:01:11.6]} 24... Rg8 {[%clk 0:00:13.5]} 25.
Nf5 {[%clk 0:01:12.1]} 25... Rge8 {[%clk 0:00:13.2]} 26. Ng7 {[%clk 0:01:05.4]}
26... Rg8 {[%clk 0:00:12.9]} 27. Bxh6 {[%clk 0:01:06]} 27... Bf8 {[%clk
0:00:11.8]} 28. Nf5 {[%clk 0:00:59.6]} 28... Nxe6 {[%clk 0:00:10.4]} 29. Bxf8
{[%clk 0:00:59]} 29... Rgxf8 {[%clk 0:00:10.6]} 30. Rh7 {[%clk 0:00:53.9]} 30...
Nxd4 {[%clk 0:00:04.3]} 31. Rbxb7 {[%clk 0:00:42.6]} 1-0

[Event "*** Titled Tuesday Blitz"]
[Site "Chess.com"]
[Date "2020.10.20"]
[Round "10"]
[White "Tooweak2slow03"]
[Black "Annawel"]
[Result "1-0"]
[WhiteElo "2794"]
[BlackElo "2912"]
[TimeControl "180+1"]
[EndTime "11:57:33 PDT"]
[Termination "Tooweak2slow03 won on time"]

1. e4 {[%clk 0:03:00.9]} 1... c5 {[%clk 0:02:13.1]} 2. Nf3 {[%clk 0:03:00.6]}
2... d6 {[%clk 0:02:13.6]} 3. d4 {[%clk 0:03:00.6]} 3... cxd4 {[%clk 0:02:14.5]}
4. Nxd4 {[%clk 0:03:01.4]} 4... Nf6 {[%clk 0:02:14.8]} 5. Nc3 {[%clk 0:03:02.1]}
5... a6 {[%clk 0:02:15]} 6. a3 {[%clk 0:03:02.7]} 6... g6 {[%clk 0:02:14.2]} 7.
Be3 {[%clk 0:02:58.8]} 7... Bg7 {[%clk 0:02:13.4]} 8. f3 {[%clk 0:02:59.1]} 8...
O-O {[%clk 0:02:13.5]} 9. Qd2 {[%clk 0:02:59.2]} 9... Nc6 {[%clk 0:02:13.7]} 10.
Bc4 {[%clk 0:02:59.2]} 10... Bd7 {[%clk 0:02:08.3]} 11. O-O-O {[%clk 0:02:53.6]}
11... b5 {[%clk 0:02:02.4]} 12. Ba2 {[%clk 0:02:48.3]} 12... Rc8 {[%clk
0:01:19.5]} 13. h4 {[%clk 0:02:46.5]} 13... b4 {[%clk 0:01:09.8]} 14. axb4
{[%clk 0:02:45.5]} 14... Nxb4 {[%clk 0:01:10.7]} 15. Bb3 {[%clk 0:02:44.4]}
15... Qa5 {[%clk 0:01:09.8]} 16. Kb1 {[%clk 0:02:43.1]} 16... h5 {[%clk
0:01:04.5]} 17. g4 {[%clk 0:02:42.4]} 17... hxg4 {[%clk 0:01:01.5]} 18. h5
{[%clk 0:02:41.6]} 18... gxh5 {[%clk 0:00:48.1]} 19. Bh6 {[%clk 0:02:40]} 19...
Rxc3 {[%clk 0:00:32.8]} 20. Bxg7 {[%clk 0:02:36.9]} 20... Rxb3 {[%clk
0:00:28.8]} 21. Nxb3 {[%clk 0:02:29]} 21... Qa2+ {[%clk 0:00:29]} 22. Kc1 {[%clk
0:02:28.9]} 22... Rc8 {[%clk 0:00:25.9]} 23. Qxb4 {[%clk 0:02:22.9]} 23... Kxg7
{[%clk 0:00:26.5]} 24. fxg4 {[%clk 0:02:20.9]} 24... Bxg4 {[%clk 0:00:27.4]} 25.
Rdg1 {[%clk 0:02:18.5]} 25... a5 {[%clk 0:00:25.4]} 26. Nxa5 {[%clk 0:02:09.2]}
26... Qe6 {[%clk 0:00:11.6]} 27. Nb3 {[%clk 0:02:06.6]} 27... Rc4 {[%clk
0:00:11.6]} 28. Qd2 {[%clk 0:02:04.9]} 28... Qxe4 {[%clk 0:00:11.4]} 29. Qg5+
{[%clk 0:02:03.4]} 29... Qg6 {[%clk 0:00:11.7]} 30. Qd2 {[%clk 0:02:01.2]} 30...
d5 {[%clk 0:00:08]} 31. Rg2 {[%clk 0:01:59]} 31... e5 {[%clk 0:00:07.1]} 32. Rf1
{[%clk 0:01:53.5]} 32... d4 {[%clk 0:00:06]} 33. Rgf2 {[%clk 0:01:52]} 33... Rc6
{[%clk 0:00:06.2]} 34. Qa5 {[%clk 0:01:49]} 34... Re6 {[%clk 0:00:06.1]} 35. Qd8
{[%clk 0:01:40.5]} 35... h4 {[%clk 0:00:04.2]} 36. Nc5 {[%clk 0:01:38.9]} 36...
Rc6 {[%clk 0:00:04.5]} 37. Nd3 {[%clk 0:01:24.1]} 37... Qxd3 {[%clk 0:00:04.4]}
38. Qxf6+ {[%clk 0:01:22.7]} 38... Rxf6 {[%clk 0:00:04.6]} 39. cxd3 {[%clk
0:01:23.3]} 39... Rxf2 {[%clk 0:00:04.4]} 40. Rxf2 {[%clk 0:01:24.2]} 40... h3
{[%clk 0:00:04.4]} 41. b4 {[%clk 0:01:23.5]} 41... Be6 {[%clk 0:00:03.1]} 42. b5
{[%clk 0:01:22.9]} 42... Bd5 {[%clk 0:00:03.6]} 43. Rh2 {[%clk 0:01:22.1]} 43...
Bg2 {[%clk 0:00:03.3]} 44. b6 {[%clk 0:01:21.7]} 44... Kg6 {[%clk 0:00:04]} 45.
Rxh3 {[%clk 0:01:20.5]} 45... Bc6 {[%clk 0:00:01.8]} 46. Kd2 {[%clk 0:01:19.5]}
46... Kf6 {[%clk 0:00:01.4]} 47. Rh6+ {[%clk 0:01:19.6]} 1-0